[Event "Titled Tuesday Blitz March 07 Early 2023"]
[White "Fikiet, Alex"]
[Black "Ruge, Edison"]
[WhiteFideId "2052717"]
[BlackFideId "4401000"]
[WhiteElo "2427"]
[BlackElo "2175"]
[Result "1/2-1/2"]
[Round "08"]
[TimeControl "180+2"]
[Date "2023.03.07"]
[WhiteClock "0:00:15"]
[BlackClock "0:00:01"]

1. e4 {[%clk 0:03:00]}  e5 {[%clk 0:02:59]} 2. Nf3 {[%clk 0:03:00]}  Nc6 {[%clk 0:02:59]} 3. Nc3 {[%clk 0:03:00]}  Be7 {[%clk 0:02:59]} 4. d4 {[%clk 0:02:57]}  d6 {[%clk 0:02:59]} 5. Bb5 {[%clk 0:02:56]}  exd4 {[%clk 0:02:57]} 6. Nxd4 {[%clk 0:02:55]}  Bd7 {[%clk 0:02:57]} 7. Bxc6 {[%clk 0:02:50]}  bxc6 {[%clk 0:02:57]} 8. O-O {[%clk 0:02:50]}  Nf6 {[%clk 0:02:57]} 9. Qf3 {[%clk 0:02:48]}  c5 {[%clk 0:02:42]} 10. Nf5 {[%clk 0:02:47]}  Bxf5 {[%clk 0:02:34]} 11. Qxf5 {[%clk 0:02:46]}  O-O {[%clk 0:02:34]} 12. b3 {[%clk 0:02:40]}  Qd7 {[%clk 0:02:34]} 13. Qf3 {[%clk 0:02:36]}  Qg4 {[%clk 0:02:34]} 14. Qe3 {[%clk 0:02:34]}  Rfe8 {[%clk 0:02:25]} 15. h3 {[%clk 0:02:33]}  Qh4 {[%clk 0:02:24]} 16. Bb2 {[%clk 0:02:29]}  Nh5 {[%clk 0:02:12]} 17. Nd5 {[%clk 0:02:17]}  Bg5 {[%clk 0:02:09]} 18. Qf3 {[%clk 0:02:11]}  Rac8 {[%clk 0:01:31]} 19. Rfe1 {[%clk 0:01:59]}  c6 {[%clk 0:01:28]} 20. Nc3 {[%clk 0:01:55]}  Re6 {[%clk 0:01:25]} 21. Qg4 {[%clk 0:01:42]}  Rce8 {[%clk 0:01:04]} 22. Qxh4 {[%clk 0:01:38]}  Bxh4 {[%clk 0:01:04]} 23. g3 {[%clk 0:01:32]}  Bf6 {[%clk 0:01:01]} 24. Rad1 {[%clk 0:01:31]}  Bd4 {[%clk 0:01:00]} 25. Kg2 {[%clk 0:01:29]}  Nf6 {[%clk 0:00:55]} 26. f3 {[%clk 0:01:21]}  h5 {[%clk 0:00:54]} 27. Na4 {[%clk 0:01:18]}  Bxb2 {[%clk 0:00:51]} 28. Nxb2 {[%clk 0:01:18]}  d5 {[%clk 0:00:51]} 29. e5 {[%clk 0:01:02]}  Rxe5 {[%clk 0:00:50]} 30. Rxe5 {[%clk 0:01:03]}  Rxe5 {[%clk 0:00:50]} 31. Kf2 {[%clk 0:01:03]}  Nd7 {[%clk 0:00:40]} 32. Nd3 {[%clk 0:01:03]}  Re8 {[%clk 0:00:39]} 33. h4 {[%clk 0:00:59]}  g6 {[%clk 0:00:39]} 34. Nf4 {[%clk 0:00:58]}  Kg7 {[%clk 0:00:38]} 35. c4 {[%clk 0:00:57]}  d4 {[%clk 0:00:37]} 36. b4 {[%clk 0:00:57]}  Rb8 {[%clk 0:00:26]} 37. bxc5 {[%clk 0:00:56]}  Rb2+ {[%clk 0:00:26]} 38. Kg1 {[%clk 0:00:56]}  Ne5 {[%clk 0:00:24]} 39. Rf1 {[%clk 0:00:48]}  Rxa2 {[%clk 0:00:23]} 40. Kh1 {[%clk 0:00:45]}  Rc2 {[%clk 0:00:22]} 41. Ra1 {[%clk 0:00:40]}  Rxc4 {[%clk 0:00:21]} 42. Rxa7 {[%clk 0:00:40]}  Nxf3 {[%clk 0:00:19]} 43. Kg2 {[%clk 0:00:40]}  Ne5 {[%clk 0:00:18]} 44. Kf2 {[%clk 0:00:40]}  Kf6 {[%clk 0:00:17]} 45. Ra5 {[%clk 0:00:37]}  Rc2+ {[%clk 0:00:18]} 46. Ke1 {[%clk 0:00:37]}  Nf3+ {[%clk 0:00:18]} 47. Kd1 {[%clk 0:00:37]}  d3 {[%clk 0:00:18]} 48. Ra3 {[%clk 0:00:32]}  Rxc5 {[%clk 0:00:17]} 49. Rxd3 {[%clk 0:00:30]}  Ne5 {[%clk 0:00:16]} 50. Rd6+ {[%clk 0:00:30]}  Kf5 {[%clk 0:00:16]} 51. Rd8 {[%clk 0:00:28]}  Kg4 {[%clk 0:00:15]} 52. Ne2 {[%clk 0:00:24]}  Rd5+ {[%clk 0:00:13]} 53. Rxd5 {[%clk 0:00:23]}  cxd5 {[%clk 0:00:14]} 54. Kd2 {[%clk 0:00:24]}  d4 {[%clk 0:00:14]} 55. Nxd4 {[%clk 0:00:21]}  Kxg3 {[%clk 0:00:12]} 56. Ke3 {[%clk 0:00:22]}  Kxh4 {[%clk 0:00:11]} 57. Kf4 {[%clk 0:00:22]}  f6 {[%clk 0:00:12]} 58. Ne6 {[%clk 0:00:21]}  Nd3+ {[%clk 0:00:10]} 59. Ke3 {[%clk 0:00:21]}  Nb4 {[%clk 0:00:09]} 60. Kf3 {[%clk 0:00:20]}  Nd5 {[%clk 0:00:07]} 61. Nf8 {[%clk 0:00:19]}  Kg5 {[%clk 0:00:07]} 62. Nh7+ {[%clk 0:00:19]}  Kf5 {[%clk 0:00:07]} 63. Nf8 {[%clk 0:00:20]}  g5 {[%clk 0:00:07]} 64. Kg3 {[%clk 0:00:20]}  h4+ {[%clk 0:00:07]} 65. Kg2 {[%clk 0:00:21]}  g4 {[%clk 0:00:07]} 66. Nd7 {[%clk 0:00:21]}  Nf4+ {[%clk 0:00:06]} 67. Kg1 {[%clk 0:00:20]}  h3 {[%clk 0:00:07]} 68. Nc5 {[%clk 0:00:21]}  g3 {[%clk 0:00:07]} 69. Nd7 {[%clk 0:00:20]}  Nh5 {[%clk 0:00:05]} 70. Nc5 {[%clk 0:00:19]}  Kf4 {[%clk 0:00:05]} 71. Ne6+ {[%clk 0:00:19]}  Kf3 {[%clk 0:00:06]} 72. Nd4+ {[%clk 0:00:20]}  Kf4 {[%clk 0:00:04]} 73. Ne2+ {[%clk 0:00:19]}  Kg4 {[%clk 0:00:04]} 74. Nd4 {[%clk 0:00:19]}  f5 {[%clk 0:00:05]} 75. Kh1 {[%clk 0:00:19]}  f4 {[%clk 0:00:06]} 76. Kg1 {[%clk 0:00:20]}  f3 {[%clk 0:00:06]} 77. Kf1 {[%clk 0:00:20]}  g2+ {[%clk 0:00:05]} 78. Kg1 {[%clk 0:00:20]}  h2+ {[%clk 0:00:06]} 79. Kxh2 {[%clk 0:00:20]}  Nf4 {[%clk 0:00:06]} 80. Nc2 {[%clk 0:00:15]}  Ne2 {[%clk 0:00:06]} 81. Ne3+ {[%clk 0:00:15]}  Kf4 {[%clk 0:00:04]} 82. Nxg2+ {[%clk 0:00:15]}  Ke4 {[%clk 0:00:01]} 83. Nh4 {[%clk 0:00:15]} 1/2-1/2


[Site "https://www.chess.com"]

[Event "Titled Tuesday Blitz March 07 Early 2023"]
[White "Shevtchenko, Olesya"]
[Black "Samarth, J Rao"]
[WhiteFideId "24131890"]
[BlackFideId "46652370"]
[WhiteElo "2003"]
[BlackElo "1564"]
[Result "1-0"]
[Round "08"]
[TimeControl "180+2"]
[Date "2023.03.07"]
[WhiteClock "0:02:09"]
[BlackClock "0:00:35"]

1. e4 {[%clk 0:02:58]}  c5 {[%clk 0:02:59]} 2. Nf3 {[%clk 0:02:59]}  d6 {[%clk 0:02:57]} 3. d4 {[%clk 0:02:56]}  cxd4 {[%clk 0:02:57]} 4. Nxd4 {[%clk 0:02:57]}  Nf6 {[%clk 0:02:57]} 5. Nc3 {[%clk 0:02:58]}  a6 {[%clk 0:02:57]} 6. Nb3 {[%clk 0:02:58]}  e5 {[%clk 0:02:57]} 7. Bg5 {[%clk 0:02:56]}  Nbd7 {[%clk 0:02:55]} 8. Nd5 {[%clk 0:02:52]}  Be7 {[%clk 0:02:55]} 9. Nxe7 {[%clk 0:02:52]}  Qxe7 {[%clk 0:02:56]} 10. Qd3 {[%clk 0:02:50]}  h6 {[%clk 0:02:53]} 11. Bxf6 {[%clk 0:02:48]}  Nxf6 {[%clk 0:02:52]} 12. O-O-O {[%clk 0:02:47]}  O-O {[%clk 0:02:52]} 13. f3 {[%clk 0:02:47]}  Rd8 {[%clk 0:02:52]} 14. c4 {[%clk 0:02:44]}  Be6 {[%clk 0:02:50]} 15. Kb1 {[%clk 0:02:45]}  Rac8 {[%clk 0:02:49]} 16. Rc1 {[%clk 0:02:44]}  b6 {[%clk 0:02:21]} 17. g4 {[%clk 0:02:39]}  a5 {[%clk 0:02:21]} 18. h4 {[%clk 0:02:36]}  a4 {[%clk 0:02:19]} 19. Nd2 {[%clk 0:02:34]}  b5 {[%clk 0:02:17]} 20. cxb5 {[%clk 0:02:34]}  Bxa2+ {[%clk 0:02:15]} 21. Kxa2 {[%clk 0:02:33]}  Rxc1 {[%clk 0:02:16]} 22. g5 {[%clk 0:02:31]}  Qe6+ {[%clk 0:02:09]} 23. Nc4 {[%clk 0:02:26]}  d5 {[%clk 0:02:08]} 24. gxf6 {[%clk 0:02:21]}  gxf6 {[%clk 0:01:24]} 25. Bh3 {[%clk 0:02:16]}  dxc4 {[%clk 0:00:35]} 26. Qxd8+ {[%clk 0:02:10]}  Qe8 {[%clk 0:00:35]} 27. Qxe8+ {[%clk 0:02:09]} 1-0


[Site "https://www.chess.com"]

[Event "Titled Tuesday Blitz March 07 Early 2023"]
[White "Ardila, Oscar Humberto"]
[Black "Hoffmann, Asa"]
[WhiteFideId "4404742"]
[BlackFideId "2001470"]
[WhiteElo "1911"]
[BlackElo "2117"]
[Result "1/2-1/2"]
[Round "08"]
[TimeControl "180+2"]
[Date "2023.03.07"]
[WhiteClock "0:00:08"]
[BlackClock "0:00:07"]

1. d4 {[%clk 0:02:59]}  Nf6 {[%clk 0:02:58]} 2. c4 {[%clk 0:03:00]}  c5 {[%clk 0:02:56]} 3. dxc5 {[%clk 0:02:59]}  Na6 {[%clk 0:02:55]} 4. Nf3 {[%clk 0:02:59]}  Nxc5 {[%clk 0:02:54]} 5. e3 {[%clk 0:02:58]}  d6 {[%clk 0:02:54]} 6. Be2 {[%clk 0:02:58]}  g6 {[%clk 0:02:54]} 7. O-O {[%clk 0:02:58]}  Bg7 {[%clk 0:02:54]} 8. Nc3 {[%clk 0:02:58]}  O-O {[%clk 0:02:53]} 9. Qc2 {[%clk 0:02:56]}  Bf5 {[%clk 0:02:47]} 10. Qd1 {[%clk 0:02:50]}  a6 {[%clk 0:02:46]} 11. Nd4 {[%clk 0:02:44]}  Bd7 {[%clk 0:02:45]} 12. Bf3 {[%clk 0:02:43]}  Rc8 {[%clk 0:02:44]} 13. b4 {[%clk 0:02:35]}  Ne6 {[%clk 0:02:44]} 14. Qb3 {[%clk 0:02:12]}  b6 {[%clk 0:02:29]} 15. Bb2 {[%clk 0:02:07]}  Ng5 {[%clk 0:02:17]} 16. Be2 {[%clk 0:02:04]}  e5 {[%clk 0:02:15]} 17. Nf3 {[%clk 0:02:02]}  Ne6 {[%clk 0:02:09]} 18. Rfd1 {[%clk 0:02:00]}  Qe7 {[%clk 0:02:08]} 19. Nd5 {[%clk 0:01:50]}  Nxd5 {[%clk 0:02:07]} 20. cxd5 {[%clk 0:01:43]}  Nc7 {[%clk 0:02:07]} 21. Rac1 {[%clk 0:01:15]}  Bb5 {[%clk 0:02:05]} 22. Bxb5 {[%clk 0:01:09]}  Nxb5 {[%clk 0:02:04]} 23. a4 {[%clk 0:01:08]}  Na7 {[%clk 0:01:45]} 24. e4 {[%clk 0:01:07]}  f5 {[%clk 0:01:43]} 25. Nd2 {[%clk 0:00:42]}  Bh6 {[%clk 0:01:41]} 26. Rxc8 {[%clk 0:00:41]}  Rxc8 {[%clk 0:01:40]} 27. Nc4 {[%clk 0:00:40]}  b5 {[%clk 0:01:37]} 28. axb5 {[%clk 0:00:39]}  Nxb5 {[%clk 0:01:37]} 29. exf5 {[%clk 0:00:36]}  gxf5 {[%clk 0:01:36]} 30. Na5 {[%clk 0:00:36]}  Rf8 {[%clk 0:01:20]} 31. Nc6 {[%clk 0:00:35]}  Qg5 {[%clk 0:01:17]} 32. Qh3 {[%clk 0:00:29]}  Bg7 {[%clk 0:01:13]} 33. Rd3 {[%clk 0:00:24]}  f4 {[%clk 0:01:09]} 34. Qe6+ {[%clk 0:00:23]}  Kh8 {[%clk 0:01:09]} 35. f3 {[%clk 0:00:16]}  Rg8 {[%clk 0:01:06]} 36. Rd2 {[%clk 0:00:16]}  Bf8 {[%clk 0:01:02]} 37. h3 {[%clk 0:00:13]}  Qg3 {[%clk 0:00:59]} 38. Re2 {[%clk 0:00:11]}  Qg6 {[%clk 0:00:48]} 39. Qd7 {[%clk 0:00:10]}  Qd3 {[%clk 0:00:44]} 40. Kf2 {[%clk 0:00:08]}  Rxg2+ {[%clk 0:00:40]} 41. Kxg2 {[%clk 0:00:09]}  Qxe2+ {[%clk 0:00:40]} 42. Kg1 {[%clk 0:00:09]}  Qxb2 {[%clk 0:00:32]} 43. Qf5 {[%clk 0:00:09]}  Qc1+ {[%clk 0:00:29]} 44. Kh2 {[%clk 0:00:09]}  Qd2+ {[%clk 0:00:29]} 45. Kg1 {[%clk 0:00:09]}  Qe3+ {[%clk 0:00:23]} 46. Kg2 {[%clk 0:00:09]}  Qe2+ {[%clk 0:00:23]} 47. Kg1 {[%clk 0:00:09]}  Kg8 {[%clk 0:00:20]} 48. Qe6+ {[%clk 0:00:09]}  Kg7 {[%clk 0:00:20]} 49. Qg4+ {[%clk 0:00:09]}  Kh6 {[%clk 0:00:16]} 50. Qh4+ {[%clk 0:00:08]}  Kg6 {[%clk 0:00:15]} 51. Qg4+ {[%clk 0:00:08]}  Kh6 {[%clk 0:00:13]} 52. Qh4+ {[%clk 0:00:08]}  Kg7 {[%clk 0:00:13]} 53. Qg5+ {[%clk 0:00:08]}  Kf7 {[%clk 0:00:11]} 54. Qf5+ {[%clk 0:00:08]}  Kg8 {[%clk 0:00:11]} 55. Qe6+ {[%clk 0:00:08]}  Kg7 {[%clk 0:00:08]} 56. Qg4+ {[%clk 0:00:08]}  Kh8 {[%clk 0:00:08]} 57. Qf5 {[%clk 0:00:08]}  Kg7 {[%clk 0:00:07]} 58. Qg4+ {[%clk 0:00:08]} 1/2-1/2


[Site "https://www.chess.com"]

[Event "Titled Tuesday Blitz March 07 Early 2023"]
[White "Belov, Alexei"]
[Black "Fernandez Siles, Luis"]
[WhiteFideId "4128206"]
[BlackFideId "2209420"]
[WhiteElo "2551"]
[BlackElo "2186"]
[Result "1-0"]
[Round "08"]
[TimeControl "180+2"]
[Date "2023.03.07"]
[WhiteClock "0:00:58"]
[BlackClock "0:00:24"]

1. e4 {[%clk 0:03:00]}  c5 {[%clk 0:02:59]} 2. Nf3 {[%clk 0:03:01]}  Nc6 {[%clk 0:02:59]} 3. d4 {[%clk 0:03:01]}  cxd4 {[%clk 0:03:00]} 4. Nxd4 {[%clk 0:03:02]}  Nf6 {[%clk 0:03:01]} 5. Nc3 {[%clk 0:03:02]}  e5 {[%clk 0:03:01]} 6. Ndb5 {[%clk 0:03:02]}  d6 {[%clk 0:03:02]} 7. Bg5 {[%clk 0:03:01]}  a6 {[%clk 0:03:03]} 8. Na3 {[%clk 0:03:02]}  b5 {[%clk 0:03:04]} 9. Nd5 {[%clk 0:03:02]}  Be7 {[%clk 0:03:04]} 10. Bxf6 {[%clk 0:03:03]}  Bxf6 {[%clk 0:03:05]} 11. c3 {[%clk 0:03:03]}  O-O {[%clk 0:03:03]} 12. Nc2 {[%clk 0:03:03]}  Rb8 {[%clk 0:03:03]} 13. h4 {[%clk 0:02:46]}  Be7 {[%clk 0:03:02]} 14. g3 {[%clk 0:02:42]}  Be6 {[%clk 0:03:02]} 15. Nce3 {[%clk 0:02:38]}  Qd7 {[%clk 0:02:59]} 16. Bg2 {[%clk 0:02:30]}  Bd8 {[%clk 0:02:59]} 17. O-O {[%clk 0:02:29]}  Ne7 {[%clk 0:03:00]} 18. Nxe7+ {[%clk 0:02:22]}  Qxe7 {[%clk 0:03:00]} 19. Nd5 {[%clk 0:02:21]}  Qb7 {[%clk 0:02:58]} 20. Ne3 {[%clk 0:02:09]}  Bc7 {[%clk 0:02:19]} 21. b4 {[%clk 0:02:03]}  Qc6 {[%clk 0:02:14]} 22. Qd2 {[%clk 0:01:59]}  Rfd8 {[%clk 0:02:02]} 23. a3 {[%clk 0:01:55]}  Bb6 {[%clk 0:01:59]} 24. Rac1 {[%clk 0:01:52]}  Rbc8 {[%clk 0:01:45]} 25. Rfd1 {[%clk 0:01:51]}  Bb3 {[%clk 0:01:43]} 26. Re1 {[%clk 0:01:48]}  Be6 {[%clk 0:01:42]} 27. Kh2 {[%clk 0:01:47]}  Rd7 {[%clk 0:01:30]} 28. Nd5 {[%clk 0:01:42]}  Bxd5 {[%clk 0:01:29]} 29. exd5 {[%clk 0:01:42]}  Qc4 {[%clk 0:01:19]} 30. Bh3 {[%clk 0:01:42]}  Rdd8 {[%clk 0:01:03]} 31. Bxc8 {[%clk 0:01:40]}  Rxc8 {[%clk 0:01:04]} 32. Qe2 {[%clk 0:01:29]}  Qxd5 {[%clk 0:01:02]} 33. Red1 {[%clk 0:01:26]}  Qe6 {[%clk 0:01:02]} 34. Qd2 {[%clk 0:01:22]}  Rd8 {[%clk 0:00:59]} 35. Rc2 {[%clk 0:01:20]}  Qf5 {[%clk 0:00:58]} 36. Qe2 {[%clk 0:01:16]}  d5 {[%clk 0:00:55]} 37. Rcd2 {[%clk 0:01:16]}  e4 {[%clk 0:00:55]} 38. a4 {[%clk 0:01:13]}  Bc7 {[%clk 0:00:45]} 39. axb5 {[%clk 0:01:10]}  axb5 {[%clk 0:00:46]} 40. Qxb5 {[%clk 0:01:08]}  Qh5 {[%clk 0:00:42]} 41. Rxd5 {[%clk 0:00:59]}  Qxh4+ {[%clk 0:00:28]} 42. Kg2 {[%clk 0:00:59]}  Qf6 {[%clk 0:00:24]} 43. Rxd8+ {[%clk 0:00:58]} 1-0


[Site "https://www.chess.com"]

[Event "Titled Tuesday Blitz March 07 Early 2023"]
[White "Rodchenkov, Sergey D."]
[Black "Kostiukov, Alexandr"]
[WhiteFideId "4168712"]
[BlackFideId "14108100"]
[WhiteElo "2277"]
[BlackElo "2202"]
[Result "0-1"]
[Round "08"]
[TimeControl "180+2"]
[Date "2023.03.07"]
[WhiteClock "0:00:10"]
[BlackClock "0:00:08"]

1. e4 {[%clk 0:03:00]}  c5 {[%clk 0:02:49]} 2. Nf3 {[%clk 0:03:00]}  g6 {[%clk 0:02:39]} 3. d4 {[%clk 0:02:58]}  cxd4 {[%clk 0:02:39]} 4. Nxd4 {[%clk 0:02:59]}  Bg7 {[%clk 0:02:38]} 5. c4 {[%clk 0:02:59]}  Nc6 {[%clk 0:02:37]} 6. Be3 {[%clk 0:02:59]}  Nf6 {[%clk 0:02:37]} 7. Nc3 {[%clk 0:02:58]}  O-O {[%clk 0:02:38]} 8. Be2 {[%clk 0:02:58]}  Nxd4 {[%clk 0:02:37]} 9. Bxd4 {[%clk 0:02:58]}  Qa5 {[%clk 0:02:36]} 10. O-O {[%clk 0:02:54]}  d6 {[%clk 0:02:36]} 11. Rc1 {[%clk 0:02:36]}  Be6 {[%clk 0:02:36]} 12. f3 {[%clk 0:02:29]}  Rfc8 {[%clk 0:02:35]} 13. b4 {[%clk 0:02:05]}  Qd8 {[%clk 0:02:16]} 14. Nd5 {[%clk 0:01:45]}  Bxd5 {[%clk 0:02:11]} 15. exd5 {[%clk 0:01:37]}  a5 {[%clk 0:02:06]} 16. c5 {[%clk 0:01:22]}  dxc5 {[%clk 0:01:56]} 17. Bxf6 {[%clk 0:01:10]}  Bxf6 {[%clk 0:01:38]} 18. bxc5 {[%clk 0:01:10]}  Rxc5 {[%clk 0:01:22]} 19. Qb3 {[%clk 0:00:45]}  Qxd5 {[%clk 0:01:12]} 20. Bc4 {[%clk 0:00:30]}  Qd4+ {[%clk 0:01:09]} 21. Kh1 {[%clk 0:00:31]}  e6 {[%clk 0:00:55]} 22. Rfd1 {[%clk 0:00:31]}  Qb2 {[%clk 0:00:35]} 23. Qd3 {[%clk 0:00:30]}  Rac8 {[%clk 0:00:29]} 24. Rc2 {[%clk 0:00:30]}  Qb4 {[%clk 0:00:26]} 25. Rdc1 {[%clk 0:00:18]}  Bg5 {[%clk 0:00:26]} 26. a3 {[%clk 0:00:19]}  Qb6 {[%clk 0:00:21]} 27. f4 {[%clk 0:00:14]}  Bxf4 {[%clk 0:00:19]} 28. Rf1 {[%clk 0:00:15]}  g5 {[%clk 0:00:13]} 29. g3 {[%clk 0:00:04]}  Qc6+ {[%clk 0:00:13]} 30. Qf3 {[%clk 0:00:04]}  Rxc4 {[%clk 0:00:10]} 31. Rxc4 {[%clk 0:00:02]}  Qxf3+ {[%clk 0:00:07]} 32. Rxf3 {[%clk 0:00:03]}  Rxc4 {[%clk 0:00:08]} 33. gxf4 {[%clk 0:00:04]}  Rxf4 {[%clk 0:00:07]} 34. Rb3 {[%clk 0:00:04]}  Ra4 {[%clk 0:00:06]} 35. Kg2 {[%clk 0:00:04]}  Kg7 {[%clk 0:00:06]} 36. Rxb7 {[%clk 0:00:05]}  Rxa3 {[%clk 0:00:06]} 37. Rb5 {[%clk 0:00:06]}  Kg6 {[%clk 0:00:06]} 38. h3 {[%clk 0:00:06]}  h5 {[%clk 0:00:07]} 39. Rb8 {[%clk 0:00:07]}  h4 {[%clk 0:00:07]} 40. Rg8+ {[%clk 0:00:08]}  Kf6 {[%clk 0:00:07]} 41. Rh8 {[%clk 0:00:09]}  Kf5 {[%clk 0:00:07]} 42. Rh5 {[%clk 0:00:08]}  f6 {[%clk 0:00:07]} 43. Rh6 {[%clk 0:00:08]}  Ra1 {[%clk 0:00:07]} 44. Rh7 {[%clk 0:00:08]}  a4 {[%clk 0:00:08]} 45. Rb7 {[%clk 0:00:09]}  a3 {[%clk 0:00:08]} 46. Rb5+ {[%clk 0:00:09]}  e5 {[%clk 0:00:09]} 47. Rb1 {[%clk 0:00:10]}  Rxb1 {[%clk 0:00:08]} 0-1


[Site "https://www.chess.com"]

[Event "Titled Tuesday Blitz March 07 Early 2023"]
[White "Jiganchine, Roman"]
[Black "Bilan, Danila"]
[WhiteFideId "2603667"]
[BlackFideId "24161918"]
[WhiteElo "2315"]
[BlackElo "2182"]
[Result "0-1"]
[Round "08"]
[TimeControl "180+2"]
[Date "2023.03.07"]
[WhiteClock "0:00:17"]
[BlackClock "0:00:08"]

1. e4 {[%clk 0:03:00]}  c6 {[%clk 0:02:55]} 2. d4 {[%clk 0:02:59]}  d5 {[%clk 0:02:56]} 3. exd5 {[%clk 0:02:59]}  cxd5 {[%clk 0:02:56]} 4. Nf3 {[%clk 0:02:59]}  Nf6 {[%clk 0:02:56]} 5. c4 {[%clk 0:02:54]}  Nc6 {[%clk 0:02:56]} 6. Nc3 {[%clk 0:02:53]}  Bg4 {[%clk 0:02:55]} 7. cxd5 {[%clk 0:02:51]}  Nxd5 {[%clk 0:02:55]} 8. Qb3 {[%clk 0:02:51]}  Bxf3 {[%clk 0:02:54]} 9. gxf3 {[%clk 0:02:51]}  e6 {[%clk 0:02:54]} 10. Qxb7 {[%clk 0:02:50]}  Nxd4 {[%clk 0:02:55]} 11. Bb5+ {[%clk 0:02:49]}  Nxb5 {[%clk 0:02:55]} 12. Qc6+ {[%clk 0:02:49]}  Ke7 {[%clk 0:02:55]} 13. Qxb5 {[%clk 0:02:49]}  Qd7 {[%clk 0:02:55]} 14. Nxd5+ {[%clk 0:02:47]}  Qxd5 {[%clk 0:02:56]} 15. Bg5+ {[%clk 0:02:47]}  f6 {[%clk 0:02:56]} 16. Qxd5 {[%clk 0:02:47]}  exd5 {[%clk 0:02:57]} 17. Be3 {[%clk 0:02:48]}  Ke6 {[%clk 0:02:54]} 18. O-O-O {[%clk 0:02:47]}  Rc8+ {[%clk 0:02:33]} 19. Kb1 {[%clk 0:02:46]}  Bc5 {[%clk 0:02:34]} 20. Rhe1 {[%clk 0:02:41]}  Bxe3 {[%clk 0:02:27]} 21. Rxe3+ {[%clk 0:02:42]}  Kd6 {[%clk 0:02:27]} 22. Ra3 {[%clk 0:02:33]}  Rc7 {[%clk 0:02:15]} 23. Ra5 {[%clk 0:02:27]}  Rhc8 {[%clk 0:01:46]} 24. Raxd5+ {[%clk 0:02:24]}  Ke6 {[%clk 0:01:46]} 25. Rd6+ {[%clk 0:02:16]}  Kf5 {[%clk 0:01:37]} 26. a3 {[%clk 0:02:01]}  Rc2 {[%clk 0:01:18]} 27. R1d2 {[%clk 0:01:42]}  Rc1+ {[%clk 0:00:47]} 28. Ka2 {[%clk 0:01:41]}  R8c7 {[%clk 0:00:47]} 29. Rd7 {[%clk 0:01:32]}  h5 {[%clk 0:00:40]} 30. Rxc7 {[%clk 0:01:23]}  Rxc7 {[%clk 0:00:39]} 31. Kb3 {[%clk 0:01:10]}  Kf4 {[%clk 0:00:34]} 32. Rd3 {[%clk 0:01:07]}  g5 {[%clk 0:00:27]} 33. a4 {[%clk 0:01:06]}  h4 {[%clk 0:00:24]} 34. a5 {[%clk 0:00:59]}  f5 {[%clk 0:00:20]} 35. Kb4 {[%clk 0:00:55]}  h3 {[%clk 0:00:20]} 36. b3 {[%clk 0:00:49]}  Rc2 {[%clk 0:00:14]} 37. Rd7 {[%clk 0:00:42]}  Rxf2 {[%clk 0:00:14]} 38. Rxa7 {[%clk 0:00:42]}  Rxh2 {[%clk 0:00:14]} 39. Ka3 {[%clk 0:00:38]}  g4 {[%clk 0:00:11]} 40. fxg4 {[%clk 0:00:37]}  fxg4 {[%clk 0:00:12]} 41. Rg7 {[%clk 0:00:37]}  Rh1 {[%clk 0:00:09]} 42. Ka2 {[%clk 0:00:37]}  Re1 {[%clk 0:00:06]} 43. a6 {[%clk 0:00:36]}  Re6 {[%clk 0:00:06]} 44. a7 {[%clk 0:00:35]}  Ra6+ {[%clk 0:00:07]} 45. Kb2 {[%clk 0:00:35]}  h2 {[%clk 0:00:07]} 46. Rh7 {[%clk 0:00:35]}  g3 {[%clk 0:00:08]} 47. b4 {[%clk 0:00:34]}  Rxa7 {[%clk 0:00:07]} 48. Rh4+ {[%clk 0:00:19]}  Kf3 {[%clk 0:00:07]} 49. b5 {[%clk 0:00:19]}  Kg2 {[%clk 0:00:07]} 50. Kb3 {[%clk 0:00:18]}  h1=Q {[%clk 0:00:07]} 51. Rxh1 {[%clk 0:00:18]}  Kxh1 {[%clk 0:00:08]} 52. b6 {[%clk 0:00:17]}  Rb7 {[%clk 0:00:08]} 0-1


[Site "https://www.chess.com"]